[Event "2026 Biel Blitz Open"]
[Site "Biel, CH"]
[Date "2026.07.19"]
[Round "8"]
[White "Jelicic, Hugo"]
[Black "Marinkovic, Zoran"]
[Result "1/2-1/2"]
[Board "39"]
[TimeControl "180+2"]
[WhiteFideId "1349040"]
[BlackFideId "1346083"]
[WhiteElo "1804"]
[BlackElo "2037"]
[WhiteClock "0:00:17"]
[BlackClock "0:00:59"]
[Variant "Standard"]
[EndDate "2026.07.19"]
[EndTime "14:23:56"]

1. d4 {[%clk 0:00:00]}  Nf6 {[%clk 0:03:01]} 2. Bf4 {[%clk 0:02:59]}  g6 {[%clk 0:02:51]} 3. c4 {[%clk 0:02:59]}  Bg7 {[%clk 0:02:56]}
4. Nc3 {[%clk 0:03:00]}  d6 {[%clk 0:02:57]} 5. h3 {[%clk 0:02:56]}  O-O {[%clk 0:02:57]} 6. e3 {[%clk 0:02:55]}  Nbd7 {[%clk 0:02:57]}
7. Nf3 {[%clk 0:02:55]}  Re8 {[%clk 0:02:57]} 8. Be2 {[%clk 0:02:54]}  c5 {[%clk 0:02:43]} 9. d5 {[%clk 0:02:23]}  Nh5 {[%clk 0:02:27]}
10. Bh2 {[%clk 0:02:15]}  h6 {[%clk 0:02:25]} 11. Qc2 {[%clk 0:02:09]}  Nhf6 {[%clk 0:02:10]} 12. O-O {[%clk 0:02:08]}  a6 {[%clk 0:02:09]}
13. a3 {[%clk 0:02:03]}  Rb8 {[%clk 0:02:10]} 14. Rab1 {[%clk 0:01:58]}  b5 {[%clk 0:02:10]} 15. b4 {[%clk 0:01:47]}  bxc4 {[%clk 0:02:01]}
16. Bxc4 {[%clk 0:01:46]}  cxb4 {[%clk 0:01:57]} 17. Rxb4 {[%clk 0:01:44]}  Rxb4 {[%clk 0:01:55]} 18. axb4 {[%clk 0:01:45]}  Qc7 {[%clk 0:01:50]}
19. Qb3 {[%clk 0:01:20]}  Nb6 {[%clk 0:01:39]} 20. Be2 {[%clk 0:01:21]}  Bb7 {[%clk 0:01:39]} 21. e4 {[%clk 0:01:07]}  Nfd7 {[%clk 0:01:36]}
22. Rc1 {[%clk 0:01:05]}  Qb8 {[%clk 0:01:37]} 23. Nd2 {[%clk 0:01:05]}  Ne5 {[%clk 0:01:36]} 24. Na4 {[%clk 0:01:02]}  Nxa4 {[%clk 0:01:30]}
25. Qxa4 {[%clk 0:01:03]}  Rc8 {[%clk 0:01:31]} 26. Rxc8+ {[%clk 0:00:43]}  Qxc8 {[%clk 0:01:28]} 27. Bxe5 {[%clk 0:00:40]}  Bxe5 {[%clk 0:01:27]}
28. Nc4 {[%clk 0:00:41]}  Bd4 {[%clk 0:01:22]} 29. Bg4 {[%clk 0:00:32]}  Qb8 {[%clk 0:01:20]} 30. Na5 {[%clk 0:00:30]}  Bc3 {[%clk 0:01:10]}
31. Bd7 {[%clk 0:00:14]}  Ba8 {[%clk 0:01:02]} 32. Nc6 {[%clk 0:00:17]}  Bxc6 {[%clk 0:01:04]} 33. Qxc6 {[%clk 0:00:17]}  Qxb4 {[%clk 0:01:00]}
34. Qc8+ {[%clk 0:00:17]}  Kg7 {[%clk 0:01:01]} 35. Qxa6 {[%clk 0:00:18]}  Qb1+ {[%clk 0:01:02]} 36. Qf1 {[%clk 0:00:19]}  Qxe4 {[%clk 0:01:03]}
37. Bc6 {[%clk 0:00:18]}  Bd4 {[%clk 0:01:03]} 38. g3 {[%clk 0:00:17]}  e6 {[%clk 0:00:58]} 39. Qg2 {[%clk 0:00:15]}  exd5 {[%clk 0:00:56]}
40. Qxe4 {[%clk 0:00:15]}  dxe4 {[%clk 0:00:57]} 41. Bxe4 {[%clk 0:00:16]}  f5 {[%clk 0:00:58]} 42. Bd5 {[%clk 0:00:17]}  Kf6 {[%clk 0:00:59]} 1/2-1/2

[Event "2026 Biel Blitz Open"]
[Site "Biel, CH"]
[Date "2026.07.19"]
[Round "8"]
[White "Jud, Marc"]
[Black "Trubini, Timon"]
[Result "0-1"]
[Board "40"]
[TimeControl "180+2"]
[WhiteFideId "1309099"]
[BlackFideId "1347799"]
[WhiteElo "1946"]
[BlackElo "1788"]
[WhiteClock "0:00:36"]
[BlackClock "0:00:32"]
[Variant "Standard"]
[EndDate "2026.07.19"]
[EndTime "14:26:05"]

1. d4 {[%clk 0:03:03]}  Nf6 {[%clk 0:03:04]} 2. Nf3 {[%clk 0:03:04]}  g6 {[%clk 0:03:05]} 3. c4 {[%clk 0:03:05]}  Bg7 {[%clk 0:03:07]}
4. g3 {[%clk 0:03:05]}  O-O {[%clk 0:03:07]} 5. Bg2 {[%clk 0:03:07]}  d6 {[%clk 0:03:09]} 6. O-O {[%clk 0:03:07]}  c5 {[%clk 0:03:10]}
7. d5 {[%clk 0:03:08]}  e6 {[%clk 0:03:11]} 8. dxe6 {[%clk 0:02:59]}  Bxe6 {[%clk 0:03:12]} 9. Qc2 {[%clk 0:02:50]}  Nc6 {[%clk 0:03:08]}
10. a3 {[%clk 0:02:51]}  Nd4 {[%clk 0:02:59]} 11. Nxd4 {[%clk 0:02:49]}  cxd4 {[%clk 0:03:00]} 12. Rd1 {[%clk 0:02:37]}  Rc8 {[%clk 0:02:53]}
13. Nd2 {[%clk 0:02:11]}  d5 {[%clk 0:02:31]} 14. b3 {[%clk 0:02:11]}  dxc4 {[%clk 0:02:28]} 15. bxc4 {[%clk 0:02:11]}  b5 {[%clk 0:01:45]}
16. c5 {[%clk 0:02:12]}  Nd7 {[%clk 0:01:38]} 17. Bb2 {[%clk 0:02:00]}  Rxc5 {[%clk 0:01:34]} 18. Qd3 {[%clk 0:01:56]}  Bc4 {[%clk 0:01:26]}
19. Qf3 {[%clk 0:01:38]}  Re8 {[%clk 0:01:04]} 20. Nxc4 {[%clk 0:01:35]}  Rxc4 {[%clk 0:01:05]} 21. Qd5 {[%clk 0:01:28]}  Nc5 {[%clk 0:00:51]}
22. Rac1 {[%clk 0:01:17]}  Rxc1 {[%clk 0:00:44]} 23. Rxc1 {[%clk 0:01:12]}  Qxd5 {[%clk 0:00:45]} 24. Bxd5 {[%clk 0:01:13]}  Rxe2 {[%clk 0:00:30]}
25. Rxc5 {[%clk 0:00:48]}  Rxb2 {[%clk 0:00:30]} 26. Rc7 {[%clk 0:00:45]}  d3 {[%clk 0:00:21]} 27. Bf3 {[%clk 0:00:39]}  Bd4 {[%clk 0:00:18]}
28. Rd7 {[%clk 0:00:32]}  Rxf2 {[%clk 0:00:16]} 29. Rxd4 {[%clk 0:00:29]}  Rxf3 {[%clk 0:00:17]} 30. Kg2 {[%clk 0:00:24]}  Re3 {[%clk 0:00:18]}
31. Kf1 {[%clk 0:00:20]}  d2 {[%clk 0:00:18]} 32. Rxd2 {[%clk 0:00:21]}  Rxa3 {[%clk 0:00:19]} 33. Rb2 {[%clk 0:00:22]}  a6 {[%clk 0:00:21]}
34. Rc2 {[%clk 0:00:22]}  Kg7 {[%clk 0:00:21]} 35. Ke2 {[%clk 0:00:23]}  a5 {[%clk 0:00:22]} 36. Rc5 {[%clk 0:00:24]}  b4 {[%clk 0:00:23]}
37. Kd1 {[%clk 0:00:25]}  Ra2 {[%clk 0:00:22]} 38. Rb5 {[%clk 0:00:25]}  Rxh2 {[%clk 0:00:19]} 39. Rxa5 {[%clk 0:00:26]}  Rg2 {[%clk 0:00:20]}
40. Rb5 {[%clk 0:00:27]}  Rxg3 {[%clk 0:00:20]} 41. Rxb4 {[%clk 0:00:28]}  Rf3 {[%clk 0:00:21]} 42. Ke2 {[%clk 0:00:29]}  Rf5 {[%clk 0:00:22]}
43. Ke3 {[%clk 0:00:30]}  Rf6 {[%clk 0:00:23]} 44. Rb1 {[%clk 0:00:30]}  h5 {[%clk 0:00:23]} 45. Rg1 {[%clk 0:00:32]}  Kh6 {[%clk 0:00:24]}
46. Ke4 {[%clk 0:00:32]}  g5 {[%clk 0:00:24]} 47. Ke5 {[%clk 0:00:34]}  Kg6 {[%clk 0:00:25]} 48. Rh1 {[%clk 0:00:30]}  h4 {[%clk 0:00:25]}
49. Rg1 {[%clk 0:00:29]}  Rf5+ {[%clk 0:00:26]} 50. Ke4 {[%clk 0:00:31]}  f6 {[%clk 0:00:26]} 51. Ke3 {[%clk 0:00:32]}  Rf4 {[%clk 0:00:27]}
52. Rg2 {[%clk 0:00:33]}  f5 {[%clk 0:00:27]} 53. Rh2 {[%clk 0:00:33]}  Rg4 {[%clk 0:00:27]} 54. Kf3 {[%clk 0:00:32]}  Rg3+ {[%clk 0:00:28]}
55. Kf2 {[%clk 0:00:34]}  Kh5 {[%clk 0:00:28]} 56. Rh1 {[%clk 0:00:35]}  g4 {[%clk 0:00:29]} 57. Re1 {[%clk 0:00:34]}  Rf3+ {[%clk 0:00:30]}
58. Kg2 {[%clk 0:00:35]}  h3+ {[%clk 0:00:31]} 59. Kh2 {[%clk 0:00:36]}  Kh4 {[%clk 0:00:32]} 0-1

[Event "2026 Biel Blitz Open"]
[Site "Biel, CH"]
[Date "2026.07.19"]
[Round "8"]
[White "Delesenne, Arthur"]
[Black "Dai, Wenzhi"]
[Result "0-1"]
[Board "41"]
[TimeControl "180+2"]
[WhiteFideId "276979"]
[BlackFideId "8608369"]
[WhiteElo "1789"]
[BlackElo "1943"]
[WhiteClock "0:00:43"]
[BlackClock "0:00:09"]
[Variant "Standard"]
[EndDate "2026.07.19"]
[EndTime "14:19:59"]

1. d4 {[%clk 0:03:03]}  Nf6 {[%clk 0:03:03]} 2. Bg5 {[%clk 0:03:04]}  d5 {[%clk 0:03:05]} 3. e3 {[%clk 0:03:05]}  Bf5 {[%clk 0:03:03]}
4. Bxf6 {[%clk 0:03:04]}  exf6 {[%clk 0:03:04]} 5. Bd3 {[%clk 0:03:05]}  Bxd3 {[%clk 0:03:03]} 6. Qxd3 {[%clk 0:03:05]}  c6 {[%clk 0:03:01]}
7. Ne2 {[%clk 0:03:04]}  Bd6 {[%clk 0:03:01]} 8. O-O {[%clk 0:03:04]}  O-O {[%clk 0:03:02]} 9. Nd2 {[%clk 0:03:00]}  Re8 {[%clk 0:03:02]}
10. c4 {[%clk 0:03:00]}  Nd7 {[%clk 0:02:54]} 11. cxd5 {[%clk 0:03:00]}  cxd5 {[%clk 0:02:54]} 12. Rac1 {[%clk 0:02:44]}  g6 {[%clk 0:02:55]}
13. a3 {[%clk 0:02:38]}  f5 {[%clk 0:02:53]} 14. Rc2 {[%clk 0:02:17]}  Rc8 {[%clk 0:02:38]} 15. Rxc8 {[%clk 0:02:15]}  Qxc8 {[%clk 0:02:38]}
16. Rc1 {[%clk 0:02:16]}  Qb8 {[%clk 0:02:36]} 17. Qb5 {[%clk 0:02:09]}  Nf6 {[%clk 0:02:24]} 18. Nb3 {[%clk 0:01:51]}  Bxh2+ {[%clk 0:02:24]}
19. Kf1 {[%clk 0:01:45]}  Bd6 {[%clk 0:02:21]} 20. Nc5 {[%clk 0:01:45]}  Bxc5 {[%clk 0:02:07]} 21. Rxc5 {[%clk 0:01:42]}  Re6 {[%clk 0:01:43]}
22. Nf4 {[%clk 0:01:42]}  Rb6 {[%clk 0:01:43]} 23. Qe2 {[%clk 0:01:33]}  Qd6 {[%clk 0:01:38]} 24. b4 {[%clk 0:01:33]}  Ra6 {[%clk 0:01:20]}
25. Qa2 {[%clk 0:01:31]}  Rc6 {[%clk 0:01:17]} 26. Nxd5 {[%clk 0:01:23]}  Nxd5 {[%clk 0:00:50]} 27. Qxd5 {[%clk 0:01:17]}  Qxd5 {[%clk 0:00:49]}
28. Rxd5 {[%clk 0:01:18]}  Rc3 {[%clk 0:00:44]} 29. Ra5 {[%clk 0:01:00]}  a6 {[%clk 0:00:44]} 30. a4 {[%clk 0:00:57]}  Rb3 {[%clk 0:00:40]}
31. b5 {[%clk 0:00:55]}  axb5 {[%clk 0:00:40]} 32. Rxb5 {[%clk 0:00:54]}  Rxb5 {[%clk 0:00:26]} 33. axb5 {[%clk 0:00:55]}  Kf8 {[%clk 0:00:26]}
34. Ke2 {[%clk 0:00:56]}  Ke7 {[%clk 0:00:27]} 35. Kd3 {[%clk 0:00:57]}  Kd6 {[%clk 0:00:28]} 36. Kc4 {[%clk 0:00:57]}  g5 {[%clk 0:00:14]}
37. f3 {[%clk 0:00:58]}  h5 {[%clk 0:00:13]} 38. e4 {[%clk 0:00:59]}  fxe4 {[%clk 0:00:10]} 39. fxe4 {[%clk 0:01:00]}  f6 {[%clk 0:00:11]}
40. e5+ {[%clk 0:00:53]}  fxe5 {[%clk 0:00:12]} 41. dxe5+ {[%clk 0:00:54]}  Kxe5 {[%clk 0:00:09]} 42. Kc5 {[%clk 0:00:55]}  h4 {[%clk 0:00:04]}
43. Kb6 {[%clk 0:00:56]}  g4 {[%clk 0:00:03]} 44. Kxb7 {[%clk 0:00:56]}  h3 {[%clk 0:00:05]} 45. gxh3 {[%clk 0:00:48]}  gxh3 {[%clk 0:00:05]}
46. b6 {[%clk 0:00:48]}  h2 {[%clk 0:00:06]} 47. Kc8 {[%clk 0:00:45]}  h1=Q {[%clk 0:00:06]} 48. b7 {[%clk 0:00:46]}  Qc6+ {[%clk 0:00:07]}
49. Kb8 {[%clk 0:00:43]}  Kd6 {[%clk 0:00:06]} 50. Ka8 {[%clk 0:00:44]}  Qa6+ {[%clk 0:00:07]} 51. Kb8 {[%clk 0:00:44]}  Kc6 {[%clk 0:00:08]}
52. Kc8 {[%clk 0:00:43]}  Qxb7+ {[%clk 0:00:09]} 0-1

[Event "2026 Biel Blitz Open"]
[Site "Biel, CH"]
[Date "2026.07.19"]
[Round "8"]
[White "Pinelli, Gian"]
[Black "Wilhelm, Serge"]
[Result "1-0"]
[Board "42"]
[TimeControl "180+2"]
[WhiteFideId "1348710"]
[BlackFideId "1305808"]
[WhiteElo "1751"]
[BlackElo "1923"]
[WhiteClock "0:03:02"]
[BlackClock "0:00:31"]
[Variant "Standard"]
[EndDate "2026.07.19"]
[EndTime "14:22:48"]

1. d4 {[%clk 0:03:03]}  Nf6 {[%clk 0:03:03]} 2. c4 {[%clk 0:03:04]}  e6 {[%clk 0:03:05]} 3. Nc3 {[%clk 0:03:06]}  Bb4 {[%clk 0:03:05]}
4. Qc2 {[%clk 0:03:07]}  c5 {[%clk 0:03:03]} 5. dxc5 {[%clk 0:03:07]}  Bxc5 {[%clk 0:03:04]} 6. Nf3 {[%clk 0:03:05]}  O-O {[%clk 0:03:01]}
7. a3 {[%clk 0:02:58]}  a5 {[%clk 0:02:53]} 8. Bg5 {[%clk 0:02:58]}  Nc6 {[%clk 0:02:47]} 9. e3 {[%clk 0:02:55]}  Be7 {[%clk 0:02:45]}
10. Bd3 {[%clk 0:02:53]}  h6 {[%clk 0:02:45]} 11. Bf4 {[%clk 0:02:51]}  d5 {[%clk 0:02:42]} 12. cxd5 {[%clk 0:02:44]}  Nxd5 {[%clk 0:02:41]}
13. Nxd5 {[%clk 0:02:45]}  Qxd5 {[%clk 0:02:42]} 14. O-O {[%clk 0:02:40]}  e5 {[%clk 0:02:20]} 15. Bg3 {[%clk 0:02:23]}  Bg4 {[%clk 0:02:13]}
16. Be4 {[%clk 0:02:09]}  Qe6 {[%clk 0:02:05]} 17. Bxc6 {[%clk 0:02:09]}  bxc6 {[%clk 0:02:06]} 18. Nxe5 {[%clk 0:02:07]}  Bf5 {[%clk 0:02:02]}
19. e4 {[%clk 0:02:04]}  Bh7 {[%clk 0:01:54]} 20. Qxc6 {[%clk 0:02:05]}  Qb3 {[%clk 0:01:33]} 21. Rab1 {[%clk 0:01:29]}  Rac8 {[%clk 0:01:29]}
22. Qd7 {[%clk 0:01:09]}  Bf6 {[%clk 0:01:24]} 23. f3 {[%clk 0:00:56]}  Qb6+ {[%clk 0:01:17]} 24. Kh1 {[%clk 0:00:56]}  Rcd8 {[%clk 0:01:15]}
25. Qc6 {[%clk 0:00:54]}  Qb3 {[%clk 0:01:08]} 26. Nd7 {[%clk 0:00:47]}  Rfe8 {[%clk 0:00:56]} 27. Nxf6+ {[%clk 0:00:48]}  gxf6 {[%clk 0:00:57]}
28. Qxf6 {[%clk 0:00:48]}  Re6 {[%clk 0:00:52]} 29. Qc3 {[%clk 0:00:48]}  Qb7 {[%clk 0:00:48]} 30. Rfd1 {[%clk 0:00:49]}  Rc8 {[%clk 0:00:47]}
31. Qxa5 {[%clk 0:00:46]}  Rec6 {[%clk 0:00:43]} 32. Rd8+ {[%clk 0:00:47]}  Rxd8 {[%clk 0:00:43]} 33. Qxd8+ {[%clk 0:00:48]}  Kg7 {[%clk 0:00:44]}
34. Qd4+ {[%clk 0:00:47]}  Kg8 {[%clk 0:00:42]} 35. Be5 {[%clk 0:00:45]}  Qc8 {[%clk 0:00:38]} 36. Rd1 {[%clk 0:00:43]}  Rc1 {[%clk 0:00:33]}
37. Qd2 {[%clk 0:00:43]}  Rxd1+ {[%clk 0:00:33]} 38. Qxd1 {[%clk 0:00:44]}  Bg6 {[%clk 0:00:33]} 39. h3 {[%clk 0:00:40]}  Qe6 {[%clk 0:00:33]}
40. Qd8+ {[%clk 0:00:44]}  Kh7 {[%clk 0:00:31]} 41. Qh8# {[%clk 0:03:02]} 1-0

[Event "2026 Biel Blitz Open"]
[Site "Biel, CH"]
[Date "2026.07.19"]
[Round "8"]
[White "Amsellem, Daniel"]
[Black "Stevens, Christian"]
[Result "0-1"]
[Board "43"]
[TimeControl "180+2"]
[WhiteFideId "1363522"]
[BlackFideId "649090"]
[WhiteElo "1723"]
[BlackElo "1912"]
[WhiteClock "0:00:17"]
[BlackClock "0:00:28"]
[Variant "Standard"]
[EndDate "2026.07.19"]
[EndTime "14:27:40"]

1. c4 {[%clk 0:03:02]}  Nf6 {[%clk 0:03:03]} 2. Nf3 {[%clk 0:03:03]}  g6 {[%clk 0:03:04]} 3. Nc3 {[%clk 0:03:03]}  Bg7 {[%clk 0:03:05]}
4. e4 {[%clk 0:03:03]}  d6 {[%clk 0:03:06]} 5. d4 {[%clk 0:03:04]}  O-O {[%clk 0:03:05]} 6. Be2 {[%clk 0:03:05]}  e5 {[%clk 0:03:04]}
7. dxe5 {[%clk 0:03:05]}  dxe5 {[%clk 0:03:06]} 8. Qxd8 {[%clk 0:03:04]}  Rxd8 {[%clk 0:03:07]} 9. Bg5 {[%clk 0:03:05]}  Re8 {[%clk 0:03:08]}
10. Nd5 {[%clk 0:03:05]}  Nxd5 {[%clk 0:03:08]} 11. cxd5 {[%clk 0:03:06]}  c6 {[%clk 0:03:09]} 12. Bc4 {[%clk 0:03:07]}  b5 {[%clk 0:03:10]}
13. Bb3 {[%clk 0:03:07]}  a5 {[%clk 0:03:05]} 14. a4 {[%clk 0:03:08]}  Bd7 {[%clk 0:02:29]} 15. dxc6 {[%clk 0:03:01]}  Bxc6 {[%clk 0:02:29]}
16. Bd5 {[%clk 0:02:58]}  Bxd5 {[%clk 0:02:29]} 17. exd5 {[%clk 0:02:58]}  e4 {[%clk 0:02:23]} 18. Nd2 {[%clk 0:02:56]}  Bxb2 {[%clk 0:02:16]}
19. Rb1 {[%clk 0:02:56]}  Bc3 {[%clk 0:02:15]} 20. Rxb5 {[%clk 0:02:50]}  Nd7 {[%clk 0:02:02]} 21. Ke2 {[%clk 0:02:24]}  f6 {[%clk 0:01:40]}
22. Be3 {[%clk 0:02:20]}  Rad8 {[%clk 0:01:37]} 23. Rc1 {[%clk 0:02:20]}  Bb4 {[%clk 0:01:37]} 24. Rc7 {[%clk 0:02:10]}  Nf8 {[%clk 0:00:47]}
25. Nc4 {[%clk 0:01:52]}  Rd7 {[%clk 0:00:51]} 26. Rxd7 {[%clk 0:01:18]}  Nxd7 {[%clk 0:00:52]} 27. Nxa5 {[%clk 0:01:14]}  Bxa5 {[%clk 0:00:44]}
28. Rxa5 {[%clk 0:01:14]}  Ne5 {[%clk 0:00:42]} 29. d6 {[%clk 0:01:05]}  Nc4 {[%clk 0:00:43]} 30. Rd5 {[%clk 0:01:03]}  Rd8 {[%clk 0:00:39]}
31. d7 {[%clk 0:01:02]}  Kf7 {[%clk 0:00:37]} 32. Rd4 {[%clk 0:00:50]}  Nb6 {[%clk 0:00:31]} 33. Rxe4 {[%clk 0:00:50]}  Nxd7 {[%clk 0:00:30]}
34. Rd4 {[%clk 0:00:48]}  Ke6 {[%clk 0:00:31]} 35. f3 {[%clk 0:00:44]}  Ra8 {[%clk 0:00:29]} 36. Rb4 {[%clk 0:00:40]}  h5 {[%clk 0:00:24]}
37. Kd3 {[%clk 0:00:32]}  Ne5+ {[%clk 0:00:24]} 38. Ke4 {[%clk 0:00:30]}  f5+ {[%clk 0:00:23]} 39. Kf4 {[%clk 0:00:27]}  Nd3+ {[%clk 0:00:25]}
40. Kg5 {[%clk 0:00:28]}  Nxb4 {[%clk 0:00:26]} 41. Kxg6 {[%clk 0:00:29]}  Rxa4 {[%clk 0:00:27]} 42. Kxh5 {[%clk 0:00:28]}  Nd5 {[%clk 0:00:28]}
43. Bg5 {[%clk 0:00:26]}  Kf7 {[%clk 0:00:28]} 44. h4 {[%clk 0:00:24]}  Nf6+ {[%clk 0:00:28]} 45. Kh6 {[%clk 0:00:23]}  f4 {[%clk 0:00:27]}
46. h5 {[%clk 0:00:20]}  Nd5 {[%clk 0:00:26]} 47. Kh7 {[%clk 0:00:19]}  Ne3 {[%clk 0:00:27]} 48. h6 {[%clk 0:00:19]}  Nxg2 {[%clk 0:00:28]}
49. Kh8 {[%clk 0:00:17]}  Ne1 {[%clk 0:00:28]} 50. h7 {[%clk 0:00:17]}  Nxf3 {[%clk 0:00:27]} 51. Bxf4 {[%clk 0:00:17]}  Ra8+ {[%clk 0:00:28]} 0-1

[Event "2026 Biel Blitz Open"]
[Site "Biel, CH"]
[Date "2026.07.19"]
[Round "8"]
[White "Aryan Goyal"]
[Black "Aryan Mehta"]
[Result "1/2-1/2"]
[Board "47"]
[TimeControl "180+2"]
[WhiteFideId "366108825"]
[BlackFideId "33329664"]
[WhiteElo "1748"]
[BlackElo "2061"]
[WhiteClock "0:00:10"]
[BlackClock "0:00:05"]
[Variant "Standard"]
[EndDate "2026.07.19"]
[EndTime "14:20:31"]

1. e4 {[%clk 0:03:02]}  e5 {[%clk 0:03:04]} 2. Nf3 {[%clk 0:03:02]}  Nc6 {[%clk 0:03:05]} 3. Bb5 {[%clk 0:03:01]}  a6 {[%clk 0:03:06]}
4. Ba4 {[%clk 0:03:02]}  Nf6 {[%clk 0:03:08]} 5. O-O {[%clk 0:03:02]}  Nxe4 {[%clk 0:03:08]} 6. d4 {[%clk 0:03:03]}  b5 {[%clk 0:03:09]}
7. Bb3 {[%clk 0:03:05]}  d5 {[%clk 0:03:10]} 8. dxe5 {[%clk 0:03:03]}  Be6 {[%clk 0:03:11]} 9. Qe2 {[%clk 0:03:03]}  Bc5 {[%clk 0:03:09]}
10. Nbd2 {[%clk 0:02:58]}  Bf5 {[%clk 0:03:06]} 11. c3 {[%clk 0:02:37]}  O-O {[%clk 0:03:06]} 12. Nxe4 {[%clk 0:02:32]}  Bxe4 {[%clk 0:03:01]}
13. Bf4 {[%clk 0:02:15]}  Na5 {[%clk 0:02:33]} 14. Bc2 {[%clk 0:02:03]}  Bxc2 {[%clk 0:02:33]} 15. Qxc2 {[%clk 0:02:03]}  Nc4 {[%clk 0:02:07]}
16. b3 {[%clk 0:01:43]}  Nb6 {[%clk 0:02:08]} 17. Rfd1 {[%clk 0:01:27]}  h6 {[%clk 0:01:28]} 18. Nd4 {[%clk 0:01:21]}  Bxd4 {[%clk 0:01:22]}
19. cxd4 {[%clk 0:01:20]}  Rc8 {[%clk 0:01:05]} 20. Qc6 {[%clk 0:01:15]}  Qd7 {[%clk 0:01:05]} 21. Rac1 {[%clk 0:01:15]}  Qf5 {[%clk 0:00:56]}
22. Bg3 {[%clk 0:01:13]}  h5 {[%clk 0:00:52]} 23. h3 {[%clk 0:01:11]}  Rfe8 {[%clk 0:00:41]} 24. a4 {[%clk 0:00:51]}  bxa4 {[%clk 0:00:36]}
25. bxa4 {[%clk 0:00:52]}  Red8 {[%clk 0:00:28]} 26. a5 {[%clk 0:00:44]}  Nc4 {[%clk 0:00:29]} 27. Qxa6 {[%clk 0:00:32]}  Ra8 {[%clk 0:00:29]}
28. Qc6 {[%clk 0:00:30]}  Rxa5 {[%clk 0:00:30]} 29. Qxc7 {[%clk 0:00:28]}  Rda8 {[%clk 0:00:24]} 30. Qb7 {[%clk 0:00:28]}  Qg5 {[%clk 0:00:18]}
31. h4 {[%clk 0:00:26]}  Qg4 {[%clk 0:00:16]} 32. Rd3 {[%clk 0:00:19]}  Qe4 {[%clk 0:00:17]} 33. Rf3 {[%clk 0:00:13]}  R5a7 {[%clk 0:00:15]}
34. Qb5 {[%clk 0:00:07]}  Ra5 {[%clk 0:00:15]} 35. Qb7 {[%clk 0:00:08]}  R5a7 {[%clk 0:00:16]} 36. Qb5 {[%clk 0:00:07]}  Ra5 {[%clk 0:00:18]}
37. Qd7 {[%clk 0:00:07]}  R5a7 {[%clk 0:00:16]} 38. Qf5 {[%clk 0:00:07]}  Qxd4 {[%clk 0:00:11]} 39. e6 {[%clk 0:00:05]}  f6 {[%clk 0:00:06]}
40. Qxh5 {[%clk 0:00:06]}  Qd2 {[%clk 0:00:05]} 41. Bf4 {[%clk 0:00:06]}  Qd4 {[%clk 0:00:05]} 42. Qg6 {[%clk 0:00:05]}  Nd2 {[%clk 0:00:03]}
43. Bxd2 {[%clk 0:00:04]}  Qxd2 {[%clk 0:00:04]} 44. Rf1 {[%clk 0:00:05]}  Qe2 {[%clk 0:00:05]} 45. h5 {[%clk 0:00:06]}  Qxe6 {[%clk 0:00:06]}
46. h6 {[%clk 0:00:07]}  Qf7 {[%clk 0:00:06]} 47. Qg4 {[%clk 0:00:05]}  Ra4 {[%clk 0:00:05]} 48. Qg3 {[%clk 0:00:04]}  Kf8 {[%clk 0:00:04]}
49. Qd6+ {[%clk 0:00:05]}  Kg8 {[%clk 0:00:04]} 50. Qg3 {[%clk 0:00:05]}  Kh8 {[%clk 0:00:05]} 51. Re1 {[%clk 0:00:04]}  Ra1 {[%clk 0:00:06]}
52. Rxa1 {[%clk 0:00:04]}  Rxa1+ {[%clk 0:00:07]} 53. Kh2 {[%clk 0:00:05]}  Qh5+ {[%clk 0:00:09]} 54. Qh3 {[%clk 0:00:06]}  Qxh3+ {[%clk 0:00:07]}
55. Rxh3 {[%clk 0:00:07]}  g5 {[%clk 0:00:04]} 56. Rd3 {[%clk 0:00:07]}  Ra5 {[%clk 0:00:05]} 57. Kg3 {[%clk 0:00:07]}  Kh7 {[%clk 0:00:06]}
58. Kg4 {[%clk 0:00:08]}  Kxh6 {[%clk 0:00:02]} 59. Kf5 {[%clk 0:00:10]}  Kg7 {[%clk 0:00:06]} 60. Rd2 {[%clk 0:00:09]}  Rb5 {[%clk 0:00:05]}
61. Ke6 {[%clk 0:00:10]}  d4 {[%clk 0:00:05]} 1/2-1/2

[Event "2026 Biel Blitz Open"]
[Site "Biel, CH"]
[Date "2026.07.19"]
[Round "8"]
[White "Chantrell, Paul"]
[Black "Altenburger, Rene"]
[Result "1-0"]
[Board "48"]
[TimeControl "180+2"]
[WhiteFideId "451967"]
[BlackFideId "1305581"]
[WhiteElo "1749"]
[BlackElo "1990"]
[WhiteClock "0:00:58"]
[BlackClock "0:00:13"]
[Variant "Standard"]
[EndDate "2026.07.19"]
[EndTime "14:22:59"]

1. e4 {[%clk 0:03:02]}  e5 {[%clk 0:03:03]} 2. Nf3 {[%clk 0:03:02]}  Nf6 {[%clk 0:03:04]} 3. Nxe5 {[%clk 0:03:02]}  d6 {[%clk 0:02:52]}
4. Nf3 {[%clk 0:03:02]}  Nxe4 {[%clk 0:02:52]} 5. Nc3 {[%clk 0:03:03]}  Nf6 {[%clk 0:02:35]} 6. d4 {[%clk 0:03:04]}  d5 {[%clk 0:02:25]}
7. Bd3 {[%clk 0:03:03]}  Be7 {[%clk 0:02:23]} 8. h3 {[%clk 0:03:01]}  c6 {[%clk 0:02:23]} 9. O-O {[%clk 0:03:00]}  O-O {[%clk 0:02:20]}
10. Ne2 {[%clk 0:02:54]}  Nbd7 {[%clk 0:02:19]} 11. Ng3 {[%clk 0:02:54]}  Re8 {[%clk 0:02:16]} 12. Re1 {[%clk 0:02:55]}  Nf8 {[%clk 0:02:15]}
13. c3 {[%clk 0:02:49]}  h6 {[%clk 0:02:01]} 14. Bd2 {[%clk 0:02:37]}  Bd6 {[%clk 0:01:35]} 15. Qc2 {[%clk 0:02:30]}  Bxg3 {[%clk 0:01:27]}
16. fxg3 {[%clk 0:02:30]}  Rxe1+ {[%clk 0:01:19]} 17. Rxe1 {[%clk 0:02:31]}  Be6 {[%clk 0:01:12]} 18. Kh2 {[%clk 0:02:22]}  Qd7 {[%clk 0:01:13]}
19. Ne5 {[%clk 0:02:21]}  Qc7 {[%clk 0:01:09]} 20. Bf4 {[%clk 0:02:19]}  Qb6 {[%clk 0:01:09]} 21. b3 {[%clk 0:02:06]}  Rd8 {[%clk 0:01:08]}
22. Bf5 {[%clk 0:02:03]}  c5 {[%clk 0:01:08]} 23. Be3 {[%clk 0:01:50]}  Bxf5 {[%clk 0:00:52]} 24. Qxf5 {[%clk 0:01:49]}  cxd4 {[%clk 0:00:43]}
25. Bxd4 {[%clk 0:01:47]}  Qa6 {[%clk 0:00:40]} 26. Be3 {[%clk 0:01:36]}  Qe6 {[%clk 0:00:25]} 27. Qf4 {[%clk 0:01:24]}  Ne4 {[%clk 0:00:14]}
28. Bd4 {[%clk 0:01:14]}  Ng6 {[%clk 0:00:12]} 29. Nxg6 {[%clk 0:01:11]}  Qxg6 {[%clk 0:00:12]} 30. Re3 {[%clk 0:01:07]}  b6 {[%clk 0:00:13]}
31. Qe5 {[%clk 0:00:58]}  Qxg3+ {[%clk 0:00:00]} 1-0

[Event "2026 Biel Blitz Open"]
[Site "Biel, CH"]
[Date "2026.07.19"]
[Round "8"]
[White "Ragios, Konstantinos"]
[Black "Knuesel, Jolan"]
[Result "1-0"]
[Board "49"]
[TimeControl "180+2"]
[WhiteFideId "4210484"]
[BlackFideId "1364529"]
[WhiteElo "1957"]
[BlackElo "1728"]
[WhiteClock "0:00:22"]
[BlackClock "0:00:14"]
[Variant "Standard"]
[EndDate "2026.07.19"]
[EndTime "14:24:27"]

1. e4 {[%clk 0:03:03]}  c6 {[%clk 0:03:03]} 2. Nf3 {[%clk 0:03:03]}  d5 {[%clk 0:03:04]} 3. Nc3 {[%clk 0:03:04]}  Bg4 {[%clk 0:03:03]}
4. h3 {[%clk 0:03:04]}  Bh5 {[%clk 0:02:45]} 5. exd5 {[%clk 0:02:50]}  cxd5 {[%clk 0:02:44]} 6. g4 {[%clk 0:02:29]}  Bg6 {[%clk 0:02:45]}
7. Bb5+ {[%clk 0:02:26]}  Nc6 {[%clk 0:02:45]} 8. Ne5 {[%clk 0:02:26]}  Qb6 {[%clk 0:02:24]} 9. d4 {[%clk 0:01:51]}  e6 {[%clk 0:02:17]}
10. h4 {[%clk 0:01:41]}  h6 {[%clk 0:02:07]} 11. Nxg6 {[%clk 0:01:39]}  fxg6 {[%clk 0:02:07]} 12. Qd3 {[%clk 0:01:32]}  Nge7 {[%clk 0:01:45]}
13. Bf4 {[%clk 0:01:01]}  O-O-O {[%clk 0:01:32]} 14. Bxc6 {[%clk 0:01:00]}  Nxc6 {[%clk 0:01:13]} 15. O-O-O {[%clk 0:00:59]}  Bb4 {[%clk 0:00:47]}
16. Qxg6 {[%clk 0:00:35]}  Nxd4 {[%clk 0:00:37]} 17. Be3 {[%clk 0:00:26]}  Bxc3 {[%clk 0:00:15]} 18. bxc3 {[%clk 0:00:27]}  Ne2+ {[%clk 0:00:15]}
19. Kd2 {[%clk 0:00:28]}  Qb2 {[%clk 0:00:15]} 20. Kxe2 {[%clk 0:00:22]}  Qxc2+ {[%clk 0:00:14]} 21. Qxc2 {[%clk 0:00:22]} 1-0